bitfinex-derivatives/quotes_SOLF0:USTF0_20250312
["timestamp","ask_amount","ask_price","bid_price","bid_amount"]
[1741775196403,0.0548181,124.13,124.09,2.0863]
[1741775197209,44.32572047,124.2,124.1,0.05188876]
[1741775197611,44.32572047,124.2,124.09,2.0863]
[1741775197807,88.94116143,124.25,124.11,44.32572047]
[1741775198007,44.32572047,124.22,124.12,4.1599]
[1741775198207,8.0535,124.2,124.15,8.056]
[1741775198403,0.05561286,124.18,124.15,8.056]
[1741775198707,8.0549,124.17,124.16,0.06118198]
[1741775199010,8.0549,124.17,124.16,0.00182274]
[1741775199405,0.05561286,124.18,124.16,0.00182274]
[1741775199616,44.38133333,124.18,124.16,0.00182274]
[1741775199809,8.11031286,124.18,124.16,0.00182274]
[1741775200004,0.05561286,124.18,124.16,0.00182274]
[1741775200412,8.0549,124.17,124.16,0.00182274]
[1741775201011,2.42,124.17,124.05,4.1599]
[1741775201211,44.32572047,124.15,124.05,4.1599]
[1741775201809,44.32572047,124.17,124.05,4.1599]
[1741775202208,8.0588,124.11,124.03,243.7379]
[1741775202513,44.32572047,124.15,124.04,44.32572047]
[1741775202905,0.05085885,124.11,124.08,0.05229046]
[1741775203611,44.37657932,124.11,124.08,0.05229046]
[1741775203915,8.0601,124.09,124.08,0.05229046]
[1741775204115,0.05085885,124.11,124.08,0.05229046]
[1741775204318,8.0601,124.09,124.08,0.05229046]
[1741775204506,8.0601,124.09,124.08,9.046e-05]
[1741775206909,0.05085885,124.11,124.08,9.046e-05]
[1741775207219,8.0601,124.09,124.08,9.046e-05]
[1741775207813,8.0596,124.1,124.08,9.046e-05]
[1741775208018,0.05085885,124.11,124.08,9.046e-05]
[1741775208317,0.05085885,124.11,124.08,8.06039046]
[1741775208821,0.05085885,124.11,124.09,8.0595]
[1741775209314,0.05085885,124.11,124.1,8.0594]
[1741775210622,0.05085885,124.11,124.08,9.046e-05]
[1741775211520,0.05085885,124.11,124.08,8.06039046]
[1741775212523,0.05085885,124.11,124.08,9.046e-05]
[1741775213420,44.32572047,124.1,124.08,9.046e-05]
[1741775214227,8.0601,124.09,124.08,9.046e-05]
[1741775215223,2.42,124.09,123.99,6.3743]
[1741775215423,44.32572047,124.06,123.99,6.3743]
[1741775215724,8.0657,124.01,123.99,6.3743]
[1741775215912,44.32572047,124.06,123.99,4.1806]
[1741775216117,44.32572047,124.04,123.95,2.1085]
[1741775216313,8.0669,123.99,123.95,6.3658]
[1741775216525,44.38503508,124.04,124.01,0.05930192]
[1741775216718,44.32572047,124.04,123.95,14.4349]
[1741775217018,44.38147325,124.04,124.01,0.05846599]
[1741775217224,44.32572047,124.04,123.95,14.4349]
[1741775217524,44.38556389,124.04,124.01,0.05501138]
[1741775217822,44.32572047,124.04,123.95,6.3658]
[1741775218022,8.0654,124.01,123.96,8.0684]
[1741775218225,44.32572047,124.04,123.98,0.05401439]
[1741775218426,0.05601516,124.0,123.98,0.05401439]
[1741775218620,0.05601516,124.0,123.99,8.0666]
[1741775218821,44.32572047,124.06,123.98,0.05401439]
[1741775219022,8.0624,124.06,124.01,8.0652]
[1741775219225,44.32572047,124.08,124.01,8.0652]
[1741775219425,44.32572047,124.08,123.96,44.32572047]
[1741775219627,8.0615,124.07,123.96,44.32572047]
[1741775219822,44.32572047,124.08,123.98,44.32572047]
[1741775220025,0.05583504,124.03,124.0,0.06089075]
[1741775220223,121.36950826,124.11,124.0,44.38661122]
[1741775220424,121.36950826,124.11,124.0,286.22572047]
[1741775221227,121.36950826,124.11,124.02,44.32572047]
[1741775221424,121.36950826,124.11,124.04,44.37705902]
[1741775221625,33.10077498,124.15,124.06,44.32572047]
[1741775221826,41.15737498,124.15,124.1,8.0591]
[1741775222026,33.10077498,124.15,124.06,44.32572047]
[1741775222731,0.05183528,124.12,124.09,0.06062459]
[1741775222930,0.05183528,124.12,124.06,44.32572047]
[1741775223134,221.94237107,124.18,124.09,0.05740396]
[1741775223328,221.94237107,124.18,124.08,44.32572047]
[1741775223528,221.94237107,124.18,124.12,8.0577]
[1741775223736,258.21359154,124.18,124.08,44.32572047]
[1741775223928,44.32572047,124.16,124.04,44.32572047]
[1741775224122,44.32572047,124.14,124.07,8.0609]
[1741775224329,0.05349342,124.11,124.09,0.05302087]
[1741775224828,44.32572047,124.1,124.03,6.2354]
[1741775226133,0.0529787,124.08,124.05,0.06068142]
[1741775226337,8.0619,124.07,124.05,0.06068142]
[1741775226938,0.0529787,124.08,124.05,0.06068142]
[1741775228039,8.062,124.06,124.05,0.06068142]
[1741775228643,44.32572047,124.06,123.99,4.2946]
[1741775228842,44.32572047,124.04,123.99,4.2946]
[1741775229047,44.32572047,124.02,123.93,241.88]
[1741775229245,44.32572047,124.02,123.94,4.2946]
[1741775229449,44.32572047,124.0,123.94,4.2946]
[1741775229645,44.32572047,124.0,123.96,0.05123562]
[1741775229840,0.05165608,123.98,123.96,0.05123562]
[1741775230149,8.0683,123.97,123.96,0.05123562]
[1741775230354,44.37737655,123.98,123.89,4.2946]
[1741775230646,8.0699,123.94,123.89,12.3673]
[1741775230850,44.32572047,123.96,123.89,4.2946]
[1741775231541,0.05909491,123.94,123.91,0.05640355]
[1741775233349,44.32572047,123.93,123.91,0.05640355]
[1741775233546,52.39662047,123.93,123.91,0.05640355]
[1741775233740,44.32572047,123.93,123.91,0.05640355]
[1741775233947,8.0711,123.92,123.91,0.05640355]
[1741775234144,8.0711,123.92,123.91,0.00110355]
[1741775234641,44.32572047,123.93,123.91,0.00110355]
[1741775234847,0.05909491,123.94,123.91,0.00110355]
[1741775235740,52.45491538,123.94,123.91,0.00110355]
[1741775236143,0.05909491,123.94,123.91,0.00110355]
[1741775238152,0.05909491,123.94,123.91,8.07270355]
[1741775238349,0.05909491,123.94,123.91,0.00110355]
[1741775239252,0.05909491,123.94,123.93,8.0705]
[1741775239558,286.20572047,124.0,123.92,4.3895]
[1741775239758,286.20572047,124.0,123.95,8.0688]
[1741775239759,8.0668,123.99,123.95,8.0688]
[1741775240250,294.27192047,124.0,123.96,8.0685]
[1741775240452,286.20572047,124.0,123.97,0.06204973]
[1741775240758,0.06037577,123.99,123.97,0.06204973]
[1741775240957,8.0676,123.98,123.97,0.06204973]
[1741775243250,52.39332047,123.98,123.97,0.06204973]
[1741775243455,46.74572047,123.98,123.85,44.32572047]
[1741775243660,44.32572047,123.95,123.86,6.5101]
[1741775243861,8.0718,123.92,123.86,6.5101]
[1741775244061,44.32572047,123.95,123.86,6.5101]
[1741775244062,44.32572047,123.93,123.86,6.5101]
[1741775244360,44.32572047,123.91,123.81,241.96]
[1741775244556,8.0739,123.88,123.82,6.5101]
[1741775244860,8.0739,123.88,123.85,0.05702235]
[1741775245054,0.05915919,123.86,123.85,0.05702235]
[1741775245663,44.32572047,123.94,123.85,0.05702235]
[1741775245965,44.32572047,123.9,123.82,6.5101]
[1741775246179,44.32572047,123.88,123.82,2.1875]
[1741775246465,44.32572047,123.88,123.82,10.2651]
[1741775246659,44.32572047,123.86,123.76,44.32572047]
[1741775246861,8.0775,123.83,123.75,2.158]
[1741775247057,0.05712153,123.8,123.78,8.0799]
[1741775247363,8.0761,123.85,123.78,0.05235952]
[1741775247557,8.0761,123.85,123.75,46.48372047]
[1741775247754,44.32572047,123.86,123.75,2.158]
[1741775248262,8.0781,123.82,123.75,2.158]
[1741775248465,0.05318866,123.82,123.79,0.05840745]
[1741775249764,8.0755,123.86,123.79,0.05840745]
[1741775249964,44.32572047,123.85,123.79,0.05840745]
[1741775250265,44.32572047,123.87,123.77,44.32572047]
[1741775250661,44.32572047,123.87,123.75,46.48372047]
[1741775250864,8.13197124,123.83,123.81,0.06065337]
[1741775251465,0.05437124,123.83,123.81,0.06065337]
[1741775252662,44.32572047,123.89,123.81,0.06065337]
[1741775252963,44.32572047,123.89,123.77,44.32572047]
[1741775253165,242.1,123.91,123.81,44.32572047]
[1741775253366,242.1,123.91,123.82,2.1768]
[1741775253566,242.1,123.91,123.84,8.0763]
[1741775253866,0.061808,123.89,123.86,0.06194078]
[1741775254663,8.074,123.88,123.86,0.06194078]
[1741775254873,0.061808,123.89,123.86,0.06194078]
[1741775256973,44.32572047,123.96,123.86,0.06194078]
[1741775257268,44.32572047,123.96,123.85,44.32572047]
[1741775257665,242.28,123.97,123.83,46.35972047]
[1741775257867,44.32572047,123.94,123.83,46.35972047]
[1741775258068,0.05735288,123.91,123.83,46.35972047]
[1741775258274,44.32572047,123.94,123.83,46.35972047]
[1741775258574,0.06102552,123.88,123.86,0.05471329]
[1741775258764,0.06102552,123.88,123.84,8.076]
[1741775258965,8.0724,123.9,123.84,0.05471597]
[1741775259170,0.05379787,123.87,123.84,0.05471597]
[1741775259367,44.32572047,123.92,123.83,2.034]
[1741775259675,0.0617801,123.87,123.84,0.055141]
[1741775259867,0.0617801,123.87,123.83,2.034]
[1741775260062,44.32572047,123.94,123.84,72.28020633]
[1741775260063,8.0714,123.92,123.84,72.28020633]
[1741775260274,44.32572047,123.94,123.84,72.22]
[1741775260468,8.0715,123.92,123.88,8.0736]
[1741775260972,44.32572047,123.94,123.84,72.22]
[1741775261177,0.05839253,123.91,123.89,8.12709873]
[1741775261768,0.05839253,123.91,123.9,8.0724]
[1741775261970,0.05839253,123.91,123.89,0.05409873]
[1741775263068,0.05839253,123.91,123.9,8.0724]
[1741775263371,0.05839253,123.91,123.89,0.05409873]
[1741775264178,0.05839253,123.91,123.9,8.0724]
[1741775264372,0.05839253,123.91,123.89,0.05409873]
[1741775264770,0.05839253,123.91,123.9,8.0724]
[1741775264973,44.32572047,123.98,123.89,0.05409873]
[1741775265173,8.0689,123.96,123.93,8.0701]
[1741775265470,44.32572047,124.0,123.9,70.78]
[1741775265778,44.32572047,124.0,123.94,8.0694]
[1741775265971,44.32572047,124.0,123.91,4.2277]
[1741775266172,44.32572047,124.0,123.96,0.05168417]
[1741775266384,89.10159082,124.02,123.96,0.05168417]
[1741775267875,8.0679,123.97,123.96,0.05168417]
[1741775269976,44.32572047,124.0,123.96,0.05168417]
[1741775270773,8.0679,123.97,123.96,0.05168417]
[1741775271274,0.3025,124.02,123.82,16.1546]
[1741775271275,8.0717,123.92,123.82,16.1546]
[1741775271479,44.32572047,123.96,123.86,75.2583]
[1741775272175,44.32572047,123.94,123.86,6.3983]
[1741775272373,0.05168417,123.92,123.9,0.05778221]
[1741775272569,44.37740464,123.92,123.9,0.05778221]
[1741775273175,8.0718,123.91,123.9,0.05778221]
[1741775274476,8.12328417,123.92,123.9,0.05778221]
[1741775274677,0.05168417,123.92,123.9,0.05778221]
[1741775275686,8.0718,123.91,123.9,0.05778221]
[1741775277078,0.05168417,123.92,123.9,0.05778221]
[1741775277283,0.05168417,123.92,123.9,8.12978221]
[1741775277782,0.05168417,123.92,123.9,0.05778221]
[1741775278377,8.12288417,123.92,123.9,0.05778221]
[1741775278778,0.05168417,123.92,123.9,8.13018221]
[1741775279079,0.05168417,123.92,123.9,0.05778221]
[1741775280477,8.0718,123.91,123.9,0.05778221]
[1741775280681,0.05168417,123.92,123.9,0.05778221]
[1741775282084,8.12318417,123.92,123.9,0.05778221]
[1741775282380,0.05168417,123.92,123.9,0.05778221]
[1741775283285,0.05168417,123.92,123.91,8.0718]
[1741775283485,44.32572047,124.0,123.9,0.05778221]
[1741775283684,44.32572047,124.0,123.9,65.5]
[1741775283884,8.0684,123.97,123.94,8.0695]
[1741775284086,44.32572047,124.0,123.9,65.5]
[1741775284387,44.32572047,123.98,123.9,65.5]
[1741775284689,44.32572047,123.98,123.94,0.05942706]
[1741775285382,8.0692,123.95,123.94,0.05942706]
[1741775289583,35.41540327,123.95,123.94,0.05942706]
[1741775290089,8.0692,123.95,123.94,0.05942706]
[1741775290491,35.41540327,123.95,123.94,2.706e-05]
[1741775291892,8.0692,123.95,123.94,2.706e-05]
[1741775292093,0.05826153,123.96,123.94,2.706e-05]
[1741775292686,0.05826153,123.96,123.94,8.06952706]
[1741775293285,8.12686153,123.96,123.94,8.06952706]
[1741775293589,8.12686153,123.96,123.94,2.706e-05]
[1741775294191,8.12686153,123.96,123.94,8.06972706]
[1741775294392,0.05826153,123.96,123.94,8.06972706]
[1741775295091,8.12686153,123.96,123.94,8.06972706]
[1741775296084,44.47337035,124.03,123.94,2.42002706]
[1741775296289,44.47337035,124.03,123.99,8.066]
[1741775296587,44.47337035,124.03,123.96,62.24]
[1741775296888,44.47337035,124.03,123.97,27.34620327]
[1741775297294,44.47337035,124.03,123.99,8.12642419]
[1741775297485,44.47337035,124.03,123.99,0.06042419]
[1741775298389,44.47337035,124.03,124.01,8.0649]
[1741775298589,44.47337035,124.03,123.99,0.06042419]
[1741775298892,44.47337035,124.03,124.01,8.0648]
[1741775299493,44.47337035,124.03,124.0,8.0657]
[1741775299894,11.17883938,124.1,124.01,61.36]
[1741775300294,11.17883938,124.1,124.04,0.05100404]
[1741775300597,8.0622,124.06,124.04,0.05100404]
[1741775301494,8.0617,124.07,124.04,0.05100404]
[1741775301796,13.22293938,124.1,124.04,0.05100404]
[1741775302196,8.0617,124.07,124.04,0.05100404]
[1741775302690,8.0611,124.08,124.04,0.05100404]
[1741775303495,2.0441,124.1,124.04,0.05100404]
[1741775303696,27.34620327,124.09,124.04,0.05100404]
[1741775303892,8.0623,124.06,124.04,0.05100404]
[1741775304091,27.34620327,124.09,124.04,0.05100404]
[1741775305095,8.0622,124.06,124.04,0.05100404]
[1741775306599,2.0441,124.1,124.04,0.05100404]
[1741775306797,27.34620327,124.09,124.04,0.05100404]
[1741775308094,8.0622,124.06,124.04,0.05100404]
[1741775308398,2.0441,124.1,124.04,0.05100404]
[1741775309504,8.0624,124.06,124.04,0.05100404]
[1741775309804,8.0624,124.06,124.04,8.11420404]
[1741775309998,2.0441,124.1,124.04,0.05100404]
[1741775310804,8.0627,124.05,124.04,0.05100404]
[1741775315804,27.34620327,124.09,124.04,0.05100404]
[1741775316004,8.0618,124.07,124.04,8.11380404]
[1741775316204,2.0441,124.1,124.04,0.05100404]
[1741775316606,8.0625,124.06,124.04,0.05100404]
[1741775318203,8.0625,124.06,124.04,8.11430404]
[1741775319596,2.0441,124.1,124.04,8.11430404]
[1741775319597,2.0441,124.1,124.04,0.05100404]
[1741775320208,8.0627,124.05,124.04,0.05100404]
[1741775324707,17.06468525,124.09,124.04,0.05100404]
[1741775326103,17.06468525,124.11,124.04,0.05100404]
[1741775326908,8.0615,124.07,124.04,0.05100404]
[1741775327913,8.061,124.08,124.05,8.0626]
[1741775328411,17.06468525,124.11,124.05,0.05590215]
[1741775328812,8.062,124.06,124.05,0.05590215]
[1741775340217,17.06468525,124.09,124.0,19.20238525]
[1741775340422,8.064,124.03,124.0,19.20238525]
[1741775340919,17.06468525,124.09,124.0,19.20238525]
[1741775341124,8.065,124.02,124.0,2.1377]
[1741775341421,0.05704062,124.02,124.0,2.19970267]
[1741775342025,8.0653,124.01,124.0,2.19970267]
[1741775342424,0.05704062,124.02,124.0,2.19970267]
[1741775342627,8.12204062,124.02,124.0,2.19970267]
[1741775343321,8.12204062,124.02,124.0,10.26560267]
[1741775344130,0.05704062,124.02,124.0,10.26560267]
[1741775344426,0.05704062,124.02,124.01,8.0653]
[1741775344818,0.05704062,124.02,124.0,10.26520267]
[1741775345021,0.05704062,124.02,124.0,2.19970267]
[1741775345618,8.12164062,124.02,124.0,10.26530267]
[1741775346326,0.05704062,124.02,124.01,8.0653]
[1741775346528,17.06468525,124.09,124.0,19.26438792]
[1741775347031,8.0625,124.06,124.02,8.0644]
[1741775347632,47.76898825,124.11,124.03,0.06081194]
[1741775347831,34.45976188,124.11,124.02,17.06468525]
[1741775348029,17.06468525,124.11,124.06,0.05626784]
[1741775348732,8.0611,124.08,124.06,0.05626784]
[1741775349429,8.0604,124.09,124.06,8.11796784]
[1741775349629,17.06468525,124.11,124.06,0.05626784]
[1741775349926,8.06,124.1,124.07,8.0611]
[1741775350935,8.06,124.1,124.06,0.05626784]
[1741775351436,8.06,124.1,124.07,8.061]
[1741775351629,8.0585,124.12,124.06,0.05626784]
[1741775352029,50.57099971,124.15,124.06,17.12095309]
[1741775352226,8.0578,124.13,124.06,19.08458525]
[1741775352430,50.57099971,124.15,124.09,0.05981575]
[1741775352634,8.0571,124.14,124.09,0.05981575]
[1741775353035,8.0571,124.14,124.11,8.0583]
[1741775354238,8.0571,124.14,124.1,8.0593]
[1741775354440,8.0575,124.13,124.1,8.0593]
[1741775354638,8.0575,124.13,124.09,0.05981575]
[1741775354835,33.50631446,124.15,124.09,8.11961575]
[1741775355038,33.50631446,124.15,124.09,0.05981575]
[1741775355236,17.06468525,124.15,124.09,0.05981575]
[1741775355441,8.0594,124.1,124.09,0.05981575]
[1741775356244,8.0591,124.11,124.09,0.05981575]
[1741775357346,8.0584,124.12,124.09,0.05981575]
[1741775357747,17.06468525,124.15,124.09,0.05981575]
[1741775358950,8.0594,124.1,124.09,0.05981575]
[1741775366647,17.06468525,124.11,124.04,2.1537]
[1741775367153,8.0624,124.06,124.04,2.1537]
[1741775367354,17.06468525,124.09,124.04,2.1537]
[1741775367754,17.06468525,124.09,124.05,0.05673344]
[1741775367755,8.0625,124.06,124.05,0.05673344]
[1741775368054,0.05581271,124.08,124.05,0.05673344]
[1741775368552,8.0618,124.07,124.05,0.05673344]
[1741775369950,8.062,124.06,124.05,0.05673344]
[1741775370855,0.05581271,124.08,124.05,0.05673344]
[1741775372057,8.062,124.06,124.05,0.05673344]
[1741775372950,8.0617,124.07,124.05,0.05673344]
[1741775373155,0.05581271,124.08,124.05,0.05673344]
[1741775373554,8.0618,124.07,124.05,0.05673344]
[1741775373957,8.062,124.06,124.05,0.05673344]
[1741775374557,10.91890031,124.07,124.05,0.05673344]
[1741775374758,18.98060031,124.07,124.05,0.05673344]
[1741775377362,19.03581302,124.08,124.05,8.11913344]
[1741775377658,0.05581271,124.08,124.05,0.05673344]
[1741775377859,0.05581271,124.08,124.06,8.0617]
[1741775378456,8.062,124.06,124.05,2.05553344]
[1741775378662,8.062,124.06,124.05,0.05673344]
[1741775380463,18.98090031,124.06,124.05,0.05673344]
[1741775383358,8.0647,124.02,123.99,12.91770031]
[1741775383559,10.91890031,124.04,123.99,12.91770031]
[1741775384160,10.91890031,124.04,123.99,1.9988]
[1741775384364,10.97903824,124.03,124.0,0.05364644]
[1741775384859,0.06013793,124.03,124.0,0.05364644]
[1741775385260,8.0649,124.02,124.0,0.05364644]
[1741775385859,19.04323824,124.03,124.0,8.11924644]
[1741775386063,10.97903824,124.03,124.0,0.05364644]
[1741775386260,0.06013793,124.03,124.0,10.97254675]
[1741775386457,0.06013793,124.03,124.02,8.0646]
[1741775387962,0.06013793,124.03,124.02,18.98350031]
[1741775390171,0.06013793,124.03,124.01,8.0649]
[1741775390364,0.06013793,124.03,124.0,56.71254675]
[1741775390566,0.06013793,124.03,124.02,8.0646]
[1741775392976,0.06013793,124.03,124.02,18.98350031]
[1741775394773,0.06013793,124.03,124.02,8.0646]
[1741775394971,0.06013793,124.03,124.02,18.98350031]
[1741775396075,0.00032218,124.03,124.02,18.98350031]
[1741775399791,10.91890031,124.09,124.02,10.91890031]
[1741775399979,10.91890031,124.09,124.04,10.91890031]
[1741775400475,8.0619,124.07,124.04,18.98180031]
[1741775400677,10.91890031,124.09,124.04,18.98180031]
[1741775400979,8.0618,124.07,124.05,0.05261444]
[1741775401181,0.05641126,124.08,124.05,0.05261444]
[1741775401386,0.05641126,124.08,124.05,8.11511444]
[1741775401574,0.05641126,124.08,124.05,0.05261444]
[1741775401778,8.0614,124.07,124.05,0.05261444]
[1741775402382,0.05641126,124.08,124.05,10.97151475]
[1741775404280,8.11751126,124.08,124.05,19.03391475]
[1741775404581,0.05641126,124.08,124.05,19.03391475]
[1741775404883,0.05641126,124.08,124.07,18.98030031]
[1741775405084,13.05350031,124.13,124.07,10.91890031]
[1741775405474,10.91890031,124.14,124.09,10.91890031]
[1741775406180,10.91890031,124.14,124.1,0.05439987]
[1741775406977,154.84155343,124.16,124.1,10.97330018]
[1741775407182,154.84155343,124.16,124.12,10.91890031]
[1741775407183,44.67334813,124.16,124.12,10.91890031]
[1741775407382,52.72934813,124.16,124.13,8.0575]
[1741775407683,52.72934813,124.16,124.13,0.0573878]
[1741775407889,8.0552,124.17,124.14,8.0568]
[1741775408183,10.91890031,124.18,124.13,10.97628811]
[1741775408484,8.0553,124.17,124.14,8.0566]
[1741775409185,8.0552,124.17,124.13,19.03348811]
[1741775409483,10.91890031,124.2,124.15,10.91890031]
[1741775409985,44.67334813,124.21,124.16,0.05949373]
[1741775409986,10.91890031,124.19,124.16,0.05949373]
[1741775410484,18.97440031,124.17,124.16,0.05949373]
[1741775410680,10.91890031,124.17,124.08,2.0321]
[1741775410880,10.91890031,124.09,124.04,54.13890031]
[1741775411083,10.91890031,124.1,124.05,10.91890031]
[1741775411281,10.91890031,124.1,124.04,43.22]
[1741775411282,8.0582,124.12,124.08,8.0601]
[1741775411484,10.91890031,124.12,124.07,10.91890031]
[1741775411685,10.91890031,124.09,124.05,10.91890031]
[1741775411884,18.97900031,124.09,124.08,0.06085536]
[1741775412187,10.91890031,124.09,124.04,43.32]
[1741775412389,17.11522832,124.1,124.07,0.05455799]
[1741775412886,0.05949373,124.1,124.07,0.05455799]
[1741775413686,0.05949373,124.1,124.07,8.11555799]
[1741775413883,0.05949373,124.1,124.07,0.05455799]
[1741775415278,17.11522832,124.1,124.07,0.05455799]
[1741775415890,60.13522832,124.1,124.07,0.05455799]
[1741775416091,17.05573459,124.08,124.02,8.0642]
[1741775416395,17.05573459,124.08,124.01,2.1178]
[1741775416690,17.05573459,124.06,124.01,10.1829]
[1741775417389,0.05279663,124.05,124.02,0.05168013]
[1741775418490,0.05279663,124.05,124.04,8.0633]
[1741775420184,60.07573459,124.1,124.03,4.2188]
[1741775420891,18.96290748,124.07,124.01,2.1178]
[1741775421296,0.0612238,124.05,124.03,0.05203893]
[1741775422187,8.1240238,124.05,124.03,0.05203893]
[1741775422397,19.02413128,124.05,123.97,42.42]
[1741775422602,18.96290748,124.05,123.97,42.42]
[1741775422899,18.96290748,124.03,123.95,23.18170748]
[1741775423094,8.0636,124.04,123.95,65.56170748]
[1741775423796,0.0561616,124.01,123.98,0.06066508]
[1741775426901,19.01906908,124.01,123.98,0.06066508]
[1741775427108,18.96290748,123.99,123.92,2.1343]
[1741775427398,18.96290748,123.96,123.92,2.1343]
[1741775427595,8.0695,123.95,123.92,2.1343]
[1741775427800,61.04290748,123.98,123.92,2.1343]
[1741775428402,8.0692,123.95,123.94,0.05380833]
[1741775431992,8.0708,123.93,123.89,2.1872]
[1741775432401,60.52290748,123.94,123.89,2.1872]
[1741775432600,60.52290748,123.94,123.86,21.12170748]
[1741775432902,60.52290748,123.94,123.88,8.0734]
[1741775433199,0.05510945,123.91,123.89,0.05908817]
[1741775433702,0.05510945,123.91,123.9,8.0724]
[1741775435801,0.05510945,123.91,123.89,8.13188817]
[1741775436103,0.05510945,123.91,123.89,0.05908817]
[1741775436303,0.05510945,123.91,123.9,8.0724]
[1741775440409,8.0695,123.95,123.89,0.05908817]
[1741775440604,8.0695,123.95,123.93,8.0704]
[1741775441009,8.0695,123.95,123.88,59.84290748]
[1741775441205,8.0695,123.95,123.92,8.0708]
[1741775441406,8.0695,123.95,123.88,59.84290748]
[1741775441707,8.12994662,123.95,123.93,8.0702]
[1741775442208,8.12994662,123.95,123.92,8.13043838]
[1741775442812,8.07,123.94,123.92,8.13043838]
[1741775443307,8.12994662,123.95,123.92,8.13043838]
[1741775443704,0.06044662,123.95,123.92,8.13043838]
[1741775444007,8.12984662,123.95,123.92,8.13043838]
[1741775444307,0.06044662,123.95,123.94,8.0698]
[1741775444708,0.06044662,123.95,123.92,0.05963838]
[1741775444907,0.06044662,123.95,123.93,8.0701]
[1741775445413,0.06044662,123.95,123.92,0.05963838]
[1741775445610,0.06044662,123.95,123.94,8.0698]
[1741775446307,21.23130748,124.01,123.93,2.178]
[1741775446308,21.11470748,124.01,123.93,2.178]
[1741775446508,8.0666,124.0,123.97,8.0673]
[1741775446707,18.96290748,124.01,123.93,2.178]
[1741775447107,8.0683,123.97,123.94,8.0695]
[1741775447307,18.96290748,124.01,123.93,2.178]
[1741775447502,18.96290748,124.01,123.95,8.0689]
[1741775447503,0.05293793,123.97,123.95,8.0689]
[1741775447910,0.05293793,123.97,123.95,8.12824383]
[1741775448111,8.12083793,123.97,123.95,0.05934383]
[1741775449224,8.0685,123.96,123.95,0.05934383]
[1741775449407,0.05293793,123.97,123.95,0.05934383]
[1741775449809,8.12123793,123.97,123.95,0.05934383]
[1741775450612,0.05293793,123.97,123.95,8.12824383]
[1741775451310,8.12123793,123.97,123.95,0.05934383]
[1741775451612,0.05293793,123.97,123.95,0.05934383]
[1741775451814,0.05293793,123.97,123.95,8.12824383]
[1741775452014,0.05293793,123.97,123.95,0.05934383]
[1741775452313,8.12113793,123.97,123.95,0.05934383]
[1741775453015,0.05293793,123.97,123.95,0.05934383]
[1741775453809,8.12103793,123.97,123.95,0.05934383]
[1741775454109,0.05293793,123.97,123.95,0.05934383]
[1741775455612,8.12113793,123.97,123.95,0.05934383]
[1741775456013,0.05293793,123.97,123.95,0.05934383]
[1741775457216,8.12113793,123.97,123.95,0.05934383]
[1741775457515,0.05293793,123.97,123.95,0.05934383]
[1741775457716,0.05293793,123.97,123.95,8.12814383]
[1741775458916,0.05293793,123.97,123.96,8.0685]
[1741775459116,0.05293793,123.97,123.95,0.05934383]
[1741775459318,0.05293793,123.97,123.96,8.0685]
[1741775460612,60.37408243,124.04,123.95,19.04162626]
[1741775460817,60.37408243,124.04,123.96,2.0406]
[1741775461117,18.98228243,124.02,123.95,39.24]
[1741775461320,18.98228243,124.0,123.93,2.178]
[1741775461707,0.05801791,123.98,123.95,0.06015013]
[1741775462516,260.91845656,124.03,123.95,19.03860669]
[1741775462818,8.066,124.0,123.95,18.97845656]
[1741775463007,58.11845656,124.03,123.95,18.97845656]
[1741775463708,58.11845656,124.03,123.98,0.05972233]
[1741775463914,8.0666,123.99,123.98,0.05972233]
[1741775464115,58.11845656,124.03,123.98,0.05972233]
[1741775464512,39.14,124.03,123.98,0.05972233]
[1741775464718,57.93845656,124.05,123.98,0.05972233]
[1741775465018,8.0657,124.01,124.0,0.05260303]
[1741775467320,57.71845656,124.01,123.94,4.3594]
[1741775467518,8.0679,123.97,123.94,4.3594]
[1741775467715,8.0679,123.97,123.94,12.4289]
[1741775467911,57.71845656,124.01,123.94,4.3594]
[1741775468112,18.97845656,123.99,123.94,4.3594]
[1741775468516,0.05159529,123.98,123.95,0.05530919]
[1741775468727,8.0685,123.96,123.95,0.05530919]
[1741775469325,0.05159529,123.98,123.95,0.05530919]
[1741775470022,0.05159529,123.98,123.96,8.0681]
[1741775470214,0.05159529,123.98,123.95,57.57376575]
[1741775470520,18.97845656,124.05,123.95,57.57376575]
[1741775470715,18.97845656,124.05,123.95,57.51845656]
[1741775471121,8.0647,124.02,123.99,8.0663]
[1741775471323,18.97845656,124.05,123.95,57.51845656]
[1741775471619,18.97845656,124.05,123.99,0.05240558]
[1741775471819,18.97845656,124.05,124.0,8.0659]
[1741775471820,8.0643,124.03,124.0,8.0659]